Cogmind - Beta 15 @@@ ROGUE MODE // 2025.10.16 @ 23:20:51 Player: Runagate Result: Destroyed by S-43 Plague with Heavy Machine Gun Performance ------------- Evolutions (7) 3500 Regions Visited (16) 3200 Robots Destroyed (278) 1390 Value Destroyed (9542) 9542 Prototype IDs (14) 280 Alien Tech Used (0) 0 Bonus (4043) 4043 TOTAL SCORE: 21955 Bonus ------- Follower Combat Kills 1456 Met Warlord at Base 500 MAIN.C Attacked Warlord 500 Warlord Defense Kills 676 Built Enhanced Grunts 300 A7 Reached Mainframe 300 Met R17 at Cetus 500 Friendly Fire -189 Cogmind --------- Core Integrity 0/1300 Matter 168/300 Energy 100/100 System Corruption 0% Temperature Cool (12) Movement Core (50) Location -3/Research Parts ------- > --- POWER (2) -------- (None) > --- PROPULSION (6) --- (None) > --- UTILITY (9) ------ (None) > --- WEAPON (4) ------- (None) > --- INVENTORY (5) ---- Advanced Heat Sink Quantum Capacitor Improved Point Defense System Phase Gun Peak State ------------ > --- POWER ------------ Antimatter Reactor Light Antimatter Reactor > --- PROPULSION ------- Flexi-carbon Leg Flexi-carbon Leg Flexi-carbon Leg Myomer Leg Myomer Leg > --- UTILITY ---------- Improved Heat Sink Advanced Cooling System High-capacity Storage Unit Long-range Sensor Array Improved Signal Interpreter Improved Targeting Computer Core Analyzer Centrium Medium Armor Plating > --- WEAPON ----------- Phase Gun Phase Gun Advanced Variable Charge Gun Coil Gun > --- INVENTORY -------- Micro Fission Core Carbon-fiber Leg Light Armored Exoskeleton Flexi-carbon Leg Advanced Cryofiber Web Advanced Heat Sink Advanced Heat Sink Advanced Cooling System Improved Coolant Injector Energy Well Improved Trap Scanner Improved Particle Charger Centrium Medium Armor Plating Thermic Laser Thermic Laser Beamcaster Advanced Plasma Cannon Improved Datajack Chainsword [Rating: 115] Favorites ----------- Power Micro Fission Core Engine Heavy Ion Engine Power Core Micro Fission Core Reactor Quantum Reactor Propulsion Aluminum Leg Treads Light Treads Leg Aluminum Leg Wheel Centrium Wheel Flight Unit Impulse Thruster Utility Improved Heat Sink Device Improved Heat Sink Storage High-capacity Storage Unit Processor Improved Signal Interpreter Hackware System Shield Protection Centrium Medium Armor Plating Weapon Thermic Laser Energy Gun Thermic Laser Energy Cannon Advanced Plasma Cannon Ballistic Gun Autogun Ballistic Cannon Linear Accelerator Launcher Rocket Launcher Special Weapon Molecular Deconstructor Impact Weapon Heavy Flail Slashing Weapon Chainsword Build | -11 -10 -9 -9 -8 -7 -6 -6 -6 -5 -5 -5 -4 -4 -4 -4 -3 ------- Run | Yrd Mat Mat Sto Mat Fac Fac Ext Cet Fac Upp War Pro Fac Upp Upp Res Slots Evolved 14 | . . 2 . 2 2 2 . . 2 . . . 2 . . 2 Power 1 | . . . . . . . . . 1 . . . . . . . Propulsion 4 | . . 2 . . . 1 . . . . . . . . . 1 Utility 7 | . . . . 1 2 1 . . 1 . . . 1 . . 1 Weapon 2 | . . . . 1 . . . . . . . . 1 . . . Parts Attached 230 | 8 15 21 11 30 17 21 22 4 6 4 20 5 29 10 . 7 Power 28 | 1 3 1 2 . 3 2 3 2 1 . 1 2 5 2 . . Engine 15 | 1 3 1 2 . 3 1 3 . . . . 1 . . . . Core 6 | . . . . . . . . . 1 . 1 1 2 1 . . Reactor 7 | . . . . . . 1 . 2 . . . . 3 1 . . Propulsion 69 | 2 5 8 4 13 3 6 3 . 1 4 11 1 4 1 . 3 Treads 7 | . . 3 . 4 . . . . . . . . . . . . Leg 58 | 2 5 5 4 9 3 6 3 . 1 4 11 1 4 . . . Wheel 1 | . . . . . . . . . . . . . . . . 1 Hover . | . . . . . . . . . . . . . . . . . Flight 3 | . . . . . . . . . . . . . . 1 . 2 Utility 74 | 2 4 2 2 7 8 10 11 1 4 . 5 1 8 6 . 3 Device 50 | 1 2 1 2 6 5 6 8 1 4 . 3 1 4 4 . 2 Storage 9 | 1 2 1 . 1 1 1 . . . . . . 1 1 . . Processor 7 | . . . . . 1 1 2 . . . . . 1 1 . 1 Hackware 1 | . . . . . . . 1 . . . . . . . . . Protection 7 | . . . . . 1 2 . . . . 2 . 2 . . . Artifact . | . . . . . . . . . . . . . . . . . Weapon 59 | 3 3 10 3 10 3 3 5 1 . . 3 1 12 1 . 1 Energy Gun 41 | 1 . 6 1 7 3 3 5 1 . . 2 1 11 . . . Energy Cannon 1 | . . . . . . . . . . . 1 . . . . . Ballistic Gun 11 | 2 3 2 2 1 . . . . . . . . 1 . . . Ballistic Cannon 1 | . . . . . . . . . . . . . . . . 1 Launcher 1 | . . . . 1 . . . . . . . . . . . . Special Weapon 1 | . . . . . . . . . . . . . . 1 . . Impact Weapon 2 | . . 2 . . . . . . . . . . . . . . Slashing Weapon 1 | . . . . 1 . . . . . . . . . . . . Piercing Weapon . | . . . . . . . . . . . . . . . . . Special Melee Weapon . | . . . . . . . . . . . . . . . . . Unidentified Prototypes 9 | . . 2 1 3 . . . 1 . . 1 . . 1 . . Corrupted Parts 2 | . . . . . . . . 2 . . . . . . . . System Corruption 4 | . . . . . . . . 4 . . . . . . . . Parts Lost 75 | . . 6 2 4 8 3 5 . . . 9 2 20 9 4 3 Power 12 | . . . . . 2 . 1 . . . 2 1 4 1 1 . Propulsion 27 | . . 3 2 2 . 1 1 . . . 4 . 7 3 1 3 Utility 20 | . . 1 . 2 3 1 2 . . . 2 1 4 3 1 . Weapon 16 | . . 2 . . 3 1 1 . . . 1 . 5 2 1 . Highest Loss Streak 13 | . . 2 2 1 3 3 2 . . . 7 2 13 9 4 2 To Critical Strikes 4 | . . . . . . 1 1 . . . . 1 1 . . . Average Backups 16 | 1 9 14 14 14 17 17 19 20 19 20 17 19 17 16 2 2 Power 1 | . 1 2 1 1 1 1 1 2 2 2 1 . . 1 . . Propulsion 2 | . 1 1 . . 5 5 4 4 4 4 1 4 2 . . . Utility 6 | . 4 6 7 7 4 5 8 7 7 7 7 7 7 7 . 1 Weapon 4 | . 2 4 5 4 4 3 4 5 5 6 6 6 5 6 1 1 Tool/Special . | . . . . . . . . . . . . . . . . . Unused Backups 26 | . 1 7 . 3 3 4 1 2 . . . 1 . 4 . . Power 9 | . 1 3 . . 2 2 1 . . . . . . . . . Propulsion 1 | . . . . . . . . . . . . 1 . . . . Utility 9 | . . 3 . . 1 2 . 1 . . . . . 2 . . Weapon 5 | . . 1 . 2 . . . 1 . . . . . 1 . . Tool/Special 2 | . . . . 1 . . . . . . . . . 1 . . Average Slot Usage (%) 88 | . 99 98 95 96 84 84 85 86 87 88 99 92 93 49 7 11 Engine 5 | . 14 11 11 9 6 1 5 . . . . 3 . . . . Core 1 | . . . . . . . . . 4 5 5 5 5 5 . . Reactor 1 | . . . . . . 4 . 5 5 5 4 . 3 . . . Treads 1 | . . 5 . 5 . . . . . . . . . . . . Leg 23 | . 27 37 39 29 16 19 19 20 16 17 28 23 22 8 . . Device 17 | . 14 10 11 16 24 18 19 20 22 23 20 22 16 8 3 3 Storage 7 | . 14 11 11 9 7 6 6 6 5 5 5 5 5 5 . . Processor 6 | . . . . . 4 10 13 13 11 11 11 11 13 11 . . Energy Gun 15 | . 8 13 13 18 22 19 20 20 16 17 14 17 18 6 2 . Ballistic Gun 4 | . 19 8 7 7 . . . . . . . . 1 . . . Peak Build Rating 115 | 7 12 18 18 29 50 67 66 77 91 91 107 105 115 106 33 44 Average Rating 50 | 5 9 16 17 24 46 61 63 74 88 90 91 88 105 58 10 18 On Entrance 49 | . 7 12 18 17 29 49 65 64 77 91 89 105 90 105 10 5 Naked Turns 110 | . . . . . . . . . . . . . . 88 . 22 Heaviest Build 103 | 14 32 35 35 44 60 70 71 77 84 84 96 75 103 89 7 16 Greatest Support 110 | 20 20 43 40 43 60 80 85 80 80 88 100 98 110 95 7 16 Greatest Overweight (x) 3 | . 1 1 1 3 1 1 1 . 1 1 1 1 1 2 2 . Average Overweight (x) . | . . . . . . . . . . . . . . . . . Largest Inventory Capacity 25 | 8 15 15 15 15 20 20 20 20 20 20 20 20 20 25 5 5 Average Capacity 17 | 7 10 15 15 15 19 20 20 20 20 20 20 20 20 17 5 5 Most Carried 20 | 2 11 15 15 15 20 20 20 20 20 20 20 20 20 20 5 5 Average Carried 16 | 1 9 14 14 14 19 19 19 20 19 19 18 19 18 17 1 3 Final Capacity 20 | 8 15 15 15 15 20 20 20 20 20 20 20 20 20 5 5 5 Final Carried 20 | 2 10 15 15 15 19 20 20 20 20 18 20 20 18 5 1 5 Class Distribution -------------------- 24% | Scavenger-Gunner 20% | Scavenger-Skirmisher 19% | Scavenger-Mutant 16% | Mutant 11% | Skirmisher 5% | Commander-Gunner Dominant Class ---------------- Mutant | -10/Materials Scavenger-Mutant | -9/Materials Scavenger-Mutant | -9/Storage Scavenger-Gunner | -8/Materials Skirmisher | -7/Factory Scavenger-Skirmisher | -6/Factory Scavenger-Gunner | -6/Extension Commander-Gunner | -6/Cetus Scavenger-Skirmisher | -5/Factory Scavenger-Skirmisher | -5/Upper Caves Scavenger-Skirmisher | -5/Warlord Scavenger-Skirmisher | -4/Proximity Caves Scavenger-Gunner | -4/Factory Mutant | -4/Upper Caves Mutant | -4/Upper Caves Mutant | -3/Research Resources | -11 -10 -9 -9 -8 -7 -6 -6 -6 -5 -5 -5 -4 -4 -4 -4 -3 ----------- Run | Yrd Mat Mat Sto Mat Fac Fac Ext Cet Fac Upp War Pro Fac Upp Upp Res Matter Collected 5247 | 313 448 1002 367 795 285 284 240 55 120 . 414 98 435 361 30 . Remotely . | . . . . . . . . . . . . . . . . . Salvage Created 12256 | 128 837 1316 1305 1717 1154 1180 1678 118 117 . 377 382 1529 265 126 27 Parts 542 | 8 43 55 65 99 45 52 69 2 5 . 9 21 49 4 10 6 Haulers Intercepted 13 | . 2 4 3 4 . . . . . . . . . . . . Recyclers Shooed 10 | . 2 2 3 . 1 . . . . . . . 2 . . . Parts Field Recycled . | . . . . . . . . . . . . . . . . . Retrieved Matter . | . . . . . . . . . . . . . . . . . Parts Self-Destructed 42 | . . . . . . . . . . 3 . 18 . 11 10 . Prevented . | . . . . . . . . . . . . . . . . . Kills | -11 -10 -9 -9 -8 -7 -6 -6 -6 -5 -5 -5 -4 -4 -4 -4 -3 ------- Run | Yrd Mat Mat Sto Mat Fac Fac Ext Cet Fac Upp War Pro Fac Upp Upp Res Combat Hostiles Destroyed 200 | . 13 19 19 28 22 23 27 2 2 . 7 7 22 3 5 1 Guns 180 | . 13 19 18 27 19 19 22 1 2 . 5 7 20 3 5 . Cannons 2 | . . . . . . . . . . . 1 . . . . 1 AOE 3 | . . . . 1 1 . . . . . 1 . . . . . Classes Destroyed 15 | 2 6 4 . . 2 . 1 . . . . . . . . . Worker 11 | . 1 3 3 3 1 . . . . . . . . . . . Builder 9 | . 1 2 . 1 1 . 1 . . . . . 2 . . 1 Tunneler 3 | 3 . . . . . . . . . . . . . . . . Hauler 13 | . 2 4 3 4 . . . . . . . . . . . . Recycler 17 | 1 3 2 5 3 2 . . . . . . . 1 . . . Operator 7 | . . 1 1 2 . . 2 . . . . . 1 . . . Watcher 16 | . 3 1 2 4 3 1 1 . . . . . 1 . . . Swarmer 63 | . 6 4 6 7 10 7 6 . . . 2 5 4 . 5 1 Grunt 56 | . 7 7 8 14 . 6 5 . 1 . 5 . 3 . . . Brawler 1 | . . 1 . . . . . . . . . . . . . . Duelist 2 | . . 1 . . . . . . 1 . . . . . . . Sentry 42 | . . 6 5 7 4 5 13 . . . . . 2 . . . Hunter 13 | . . . . . 3 2 1 . . . . . 5 2 . . Programmer 18 | . . . . . 5 3 . . . . . 2 8 . . . Behemoth 3 | . . . . . . . 2 . . . . . . 1 . . Cetus Guard 2 | . . . . . . . . 2 . . . . . . . . Decomposer 2 | . . . . . . . . . . . . . . 2 . . Thug 1 | . . . . . . . 1 . . . . . . . . . Savage 1 | . . . . . . . . . . . 1 . . . . . Best Kill Streak 9 | 2 3 5 9 4 6 4 4 1 2 . 4 5 5 2 4 2 Combat Bots Only 6 | . 3 5 5 4 6 4 4 1 2 . 4 5 4 2 4 1 Max Kills in Single Turn 2 | 1 2 2 2 2 1 1 2 1 1 . 1 2 1 1 1 1 Gunslinging 1 | . . . . . . . 1 . . . . 1 . . . . Exploded 1 | . . . . 1 1 . . . . . 1 . . . . . Melee . | . . . . . . . . . . . . . . . . . Uniques/NPCs Destroyed . | . . . . . . . . . . . . . . . . . Combat | -11 -10 -9 -9 -8 -7 -6 -6 -6 -5 -5 -5 -4 -4 -4 -4 -3 -------- Run | Yrd Mat Mat Sto Mat Fac Fac Ext Cet Fac Upp War Pro Fac Upp Upp Res Hostile Shots Fired 1897 | . 55 96 114 98 269 167 340 32 18 . 151 47 263 71 38 138 Missed 633 | . 11 24 26 26 94 70 134 10 7 . 54 15 74 19 9 60 Hits 1264 | . 44 72 88 72 175 97 206 22 11 . 97 32 189 52 29 78 Melee 5 | . . 5 . . . . . . . . . . . . . . Projectile 1259 | . 44 67 88 72 175 97 206 22 11 . 97 32 189 52 29 78 AOE 2 | . . . . . . . . . . . 2 . . . . . Critical Strikes 38 | . . 3 2 3 2 1 2 7 1 . 2 2 11 1 . 1 Part Disruptions 3 | . . . . . 1 . . . . . 1 . 1 . . . Damage Taken 18892 | . 480 966 1016 1227 1965 1130 1682 500 306 . 2010 530 3355 1511 438 1776 Core 3274 | . 82 134 122 194 176 83 133 82 . . 102 44 401 220 199 1302 Absorbed by Shields 654 | . . . . . . . 186 123 . . 345 . . . . . Regen/Repaired (Parts) 891 | . 22 78 79 184 . . . . 453 . 75 . . . . . Core Remaining (%) 64 | 100 67 . 36 64 74 . . 64 . . . 85 . . 28 . Volleys Fired 681 | 18 56 97 75 90 68 49 61 15 12 1 26 12 65 18 9 9 Largest 4 | 2 2 2 2 3 3 3 3 3 3 1 3 3 4 4 2 1 Hottest 400 | 40 63 126 126 171 183 211 245 400 240 75 259 242 352 352 176 54 Shots Fired 1714 | 36 109 191 149 269 174 144 177 37 34 1 52 36 222 63 11 9 Gun 1677 | 36 109 191 149 268 173 144 177 37 34 1 26 36 222 63 11 . Cannon 26 | . . . . . . . . . . . 17 . . . . 9 Launcher 11 | . . . . 1 1 . . . . . 9 . . . . . Special . | . . . . . . . . . . . . . . . . . Kinetic 356 | 36 78 88 54 80 . . . . . . . . 11 . . 9 Thermal 1316 | . . 103 95 188 173 144 177 37 34 1 43 36 211 63 11 . Explosive 11 | . . . . 1 1 . . . . . 9 . . . . . Electromagnetic 31 | . 31 . . . . . . . . . . . . . . . Robot Hit Streak 40 | 4 12 11 13 14 19 25 40 12 10 . 8 9 15 25 2 2 Robot Miss Streak 6 | 4 5 6 3 5 3 3 4 1 3 1 5 4 3 2 2 2 Penetration Max . | . . . . . . . . . . . . . . . . . Secondary Targets 29 | . . 5 3 2 4 3 4 . 1 . . 3 2 1 1 . Max Gunslinging Chain 1 | . . 1 1 1 1 1 1 . 1 . . 1 1 1 1 . Shots Hit Robots 1123 | 18 72 125 105 168 119 107 122 26 19 . 28 17 140 47 6 4 Core Hits 497 | 8 29 45 39 75 49 50 66 15 9 . 20 12 60 13 5 2 Critical Kills 1 | . . 1 . . . . . . . . . . . . . . Critical Parts Destroyed 3 | . . 1 . 1 . . . . . . . . . 1 . . Critical Strikes 96 | . 1 11 4 17 11 9 17 7 3 . . 2 9 5 . . Burn 89 | . . 8 4 16 11 9 17 7 3 . . 2 9 3 . . Destroy 6 | . . 3 . 1 . . . . . . . . . 2 . . Corrupt 1 | . 1 . . . . . . . . . . . . . . . Melee Attacks 29 | . . 4 10 3 4 . . . 6 . . . . 2 . . Impact 17 | . . 4 10 3 . . . . . . . . . . . . Slashing 12 | . . . . . 4 . . . 6 . . . . 2 . . Piercing . | . . . . . . . . . . . . . . . . . Sneak Attacks 4 | . . . 3 . 1 . . . . . . . . . . . Combat Hostiles . | . . . . . . . . . . . . . . . . . Follow-up Attacks . | . . . . . . . . . . . . . . . . . Damage Inflicted 24288 | 148 1075 2043 2129 3157 2519 2185 2675 546 423 . 1539 441 3734 1235 235 204 Guns 22099 | 148 1045 2022 1705 2965 2343 2117 2654 546 423 . 501 441 3719 1235 235 . Cannons 470 | . . . . . . . . . . . 266 . . . . 204 Explosions 1021 | . 28 . . 149 72 . . . . . 772 . . . . . Melee 444 | . . . 372 . 72 . . . . . . . . . . . Ramming 254 | . 2 21 52 43 32 68 21 . . . . . 15 . . . Kinetic 3513 | 148 746 837 660 845 . . . . . . . . 73 . . 204 Thermal 18785 | . 28 1185 1045 2120 2343 2117 2654 546 423 . 767 441 3646 1235 235 . Explosive 993 | . . . . 149 72 . . . . . 772 . . . . . Electromagnetic 299 | . 299 . . . . . . . . . . . . . . . Impact 372 | . . . 372 . . . . . . . . . . . . . Slashing 72 | . . . . . 72 . . . . . . . . . . . Piercing . | . . . . . . . . . . . . . . . . . Highest Corruption 12 | . . . 1 5 3 . . 4 . . 3 2 8 12 6 . Average Corruption 5 | . . . 1 3 2 . . 3 . . 3 1 4 10 6 . Corruption Purged 7 | . . . . . 1 . . . . . . . . 6 . . Corruption Blocked . | . . . . . . . . . . . . . . . . . Effects 120 | . . . . 24 16 . . 11 . . 3 4 9 49 4 . Message Errors 31 | . . . . 9 2 . . 3 . . 1 2 4 9 1 . Matter Fused 40 | . . . . 9 7 . . 1 . . . 1 1 20 1 . Heat Flow Errors 10 | . . . . 1 1 . . 2 . . . 1 . 4 1 . Energy Discharges 12 | . . . . 2 1 . . . . . 1 . 3 5 . . Parts Fused 1 | . . . . 1 . . . . . . . . . . . . Data Loss (minor) 8 | . . . . . 1 . . 1 . . . . 1 4 1 . Data Loss (major) 6 | . . . . . 2 . . 1 . . . . . 3 . . Misfires 5 | . . . . 1 1 . . 1 . . . . . 2 . . Alerts 4 | . . . . . . . . 2 . . 1 . . 1 . . Weapon Failures 3 | . . . . 1 1 . . . . . . . . 1 . . Overload Shots 1 | . . . . . . . . 1 . . . . . . . . Overflow Damage 111 | . 15 . 84 . . . . . . . 6 . . . . 6 Projectiles 6 | . . . . . . . . . . . . . . . . 6 Explosions 21 | . 15 . . . . . . . . . 6 . . . . . Melee 84 | . . . 84 . . . . . . . . . . . . . Knockbacks 3 | . . . 2 . . . . . . . . . . . . 1 Impact 2 | . . . 2 . . . . . . . . . . . . . Kinetic 1 | . . . . . . . . . . . . . . . . 1 Secondary . | . . . . . . . . . . . . . . . . . Self-Inflicted Damage 16 | . . . . . 16 . . . . . . . . . . . Shots 1 | . . . . . 1 . . . . . . . . . . . Rammed 1 | . . . . . . . . . . . . . . . . 1 Targets Rammed 31 | . 2 3 4 10 2 4 2 . . . . . 3 . . 1 Kicked 30 | . 2 3 4 10 2 4 2 . . . . . 3 . . . Crushed . | . . . . . . . . . . . . . . . . . Highest Temperature 420 | . 114 210 180 285 196 344 203 192 93 . 8 75 420 303 194 . Average Temperature 68 | . 35 44 57 48 47 103 49 54 33 . 8 27 125 111 45 . Received Heat Transfer 2868 | . 186 312 318 459 216 237 435 13 84 . 317 . 123 63 . 105 Effects 4 | . . . . . . 1 . . . . . . 3 . . . Shutdowns 2 | . . . . . . 1 . . . . . . 1 . . . Interference 2 | . . . . . . . . . . . . . 2 . . . Siege Activations . | . . . . . . . . . . . . . . . . . Martial Activations . | . . . . . . . . . . . . . . . . . Shielding Activations . | . . . . . . . . . . . . . . . . . Robots Disrupted . | . . . . . . . . . . . . . . . . . Combat Hostiles . | . . . . . . . . . . . . . . . . . Robots Corrupted . | . . . . . . . . . . . . . . . . . Combat Hostiles . | . . . . . . . . . . . . . . . . . Parts Fried 2 | . 1 . 1 . . . . . . . . . . . . . Impact Corruptions 4 | . . . 4 . . . . . . . . . . . . . Robots Melted 16 | . . . 1 1 2 4 5 1 . . . . 2 . . . Combat Hostiles 15 | . . . 1 . 2 4 5 1 . . . . 2 . . . Parts Melted 157 | . . 5 5 13 17 25 37 4 . . 1 2 43 5 . . Heat Transferred 43417 | . 50 3256 2590 5698 5217 5379 7578 1913 1042 . 1003 777 6557 2024 333 . Parts Sabotaged . | . . . . . . . . . . . . . . . . . Parts Stolen . | . . . . . . . . . . . . . . . . . Parts Stripped . | . . . . . . . . . . . . . . . . . Power Chain Reactions 1 | . 1 . . . . . . . . . . . . . . . Alert | -11 -10 -9 -9 -8 -7 -6 -6 -6 -5 -5 -5 -4 -4 -4 -4 -3 ------- Run | Yrd Mat Mat Sto Mat Fac Fac Ext Cet Fac Upp War Pro Fac Upp Upp Res Maximum Alert Level 2 | . . . 1 1 1 1 1 1 2 . . . 1 . . . Low Security (%) 80 | 100 100 100 71 88 52 88 84 37 67 . . . 91 . . 100 Level 1 18 | . . . 28 11 48 11 15 62 13 . . . 8 . . . Level 2 1 | . . . . . . . . . 18 . . . . . . . Level 3 . | . . . . . . . . . . . . . . . . . Level 4 . | . . . . . . . . . . . . . . . . . Level 5 . | . . . . . . . . . . . . . . . . . High Security . | . . . . . . . . . . . . . . . . . Max Security . | . . . . . . . . . . . . . . . . . Peak Influence 575 | 5 198 164 270 360 298 226 274 326 575 . . . 227 . . 61 Initial 162 | . . 42 42 74 162 133 102 141 79 . . . . . . 48 Average 127 | 1 86 76 151 102 164 146 106 218 213 . . . 74 . . 36 Influence Increases 8145 | 20 472 630 682 926 837 637 880 355 1146 91 180 170 701 185 110 123 Destroy 0b10 Robot/C 4580 | . 260 380 380 560 440 460 560 160 400 40 180 140 440 60 100 20 Destroy 0b10 Robot/NC 430 | 20 50 65 70 85 35 5 20 10 30 . . 10 25 . . 5 Destroy Leader 1034 | . 60 110 110 156 146 142 62 . 86 10 . 20 102 20 10 . Allied During Kill 849 | . . . . . . . 146 156 506 41 . . . . . . Successful Hack 135 | . 8 23 29 28 22 . 14 . 4 . . . 7 . . . Disable Machine 240 | . . 15 60 30 30 15 . 15 60 . . . 15 . . . Destroy Structure 172 | . 4 7 3 22 29 . 3 14 60 . . . 22 . . 8 Partial Spotted 45 | . . . 15 . 15 . 15 . . . . . . . . . Lose Combat Pursuer 660 | . 90 30 15 45 120 15 60 . . . . . 90 105 . 90 Influence Decreases 8084 | 20 369 630 607 747 920 701 837 466 735 305 517 172 480 329 115 134 Entered New Map 1513 | . . 61 61 104 195 141 108 112 63 205 339 2 . 83 15 24 Time Decay 5618 | 20 369 519 526 583 645 530 586 294 572 100 88 150 280 216 60 80 Lost Part 660 | . . 50 20 40 80 30 50 . . . 70 20 200 30 40 30 Lost Ally 293 | . . . . 20 . . 93 60 100 . 20 . . . . . Squads Dispatched 41 | . 2 2 3 8 6 5 3 . 7 . . . 5 . . . Investigation 5 | . 1 1 2 . . . 1 . . . . . . . . . Extermination 12 | . . . . . 5 3 . . 2 . . . 2 . . . Reinforcement 20 | . 1 1 1 5 . 2 2 . 5 . . . 3 . . . Assault . | . . . . . . . . . . . . . . . . . Garrison 4 | . . . . 3 1 . . . . . . . . . . . Intercept . | . . . . . . . . . . . . . . . . . Searches Triggered . | . . . . . . . . . . . . . . . . . Construction Impeded 3 | . . . . 1 . . . . 1 . . . 1 . . . Haulers Reinforced . | . . . . . . . . . . . . . . . . . Active Scanning Responses . | . . . . . . . . . . . . . . . . . Cargo Convoy Interrupts . | . . . . . . . . . . . . . . . . . Stealth | -11 -10 -9 -9 -8 -7 -6 -6 -6 -5 -5 -5 -4 -4 -4 -4 -3 --------- Run | Yrd Mat Mat Sto Mat Fac Fac Ext Cet Fac Upp War Pro Fac Upp Upp Res Distress Signals 20 | . 1 4 1 1 1 1 . 2 2 . 1 . 6 . . . Communications Jammed . | . . . . . . . . . . . . . . . . . Distress Signals . | . . . . . . . . . . . . . . . . . Times Spotted 408 | . 25 26 26 44 36 29 35 10 16 1 78 7 36 10 5 24 Peak Tracking Total 16 | . 4 5 4 5 5 4 5 5 3 1 16 5 7 7 5 16 Tactical Retreats 27 | . 4 1 1 3 4 1 3 . . . . . 4 3 . 3 Traps | -11 -10 -9 -9 -8 -7 -6 -6 -6 -5 -5 -5 -4 -4 -4 -4 -3 ------- Run | Yrd Mat Mat Sto Mat Fac Fac Ext Cet Fac Upp War Pro Fac Upp Upp Res Traps Triggered 9 | . 4 . 2 2 . . . . 1 . . . . . . . Indirectly . | . . . . . . . . . . . . . . . . . Trap Hack Attempts . | . . . . . . . . . . . . . . . . . Triggered . | . . . . . . . . . . . . . . . . . Disarmed . | . . . . . . . . . . . . . . . . . Reprogrammed 6 | . . . 6 . . . . . . . . . . . . . Reused . | . . . . . . . . . . . . . . . . . Traps Extracted . | . . . . . . . . . . . . . . . . . Installed . | . . . . . . . . . . . . . . . . . Triggered . | . . . . . . . . . . . . . . . . . Machines | -11 -10 -9 -9 -8 -7 -6 -6 -6 -5 -5 -5 -4 -4 -4 -4 -3 ---------- Run | Yrd Mat Mat Sto Mat Fac Fac Ext Cet Fac Upp War Pro Fac Upp Upp Res Machines Disabled 17 | . 1 1 4 2 2 1 . 1 4 . . . 1 . . . Max in Single Turn 2 | . 1 1 1 2 1 1 . 1 1 . . . 1 . . . Machines Repaired . | . . . . . . . . . . . . . . . . . Machines Dismantled . | . . . . . . . . . . . . . . . . . Machines Sabotaged . | . . . . . . . . . . . . . . . . . Overloaded Fab Kills . | . . . . . . . . . . . . . . . . . Hacking | -11 -10 -9 -9 -8 -7 -6 -6 -6 -5 -5 -5 -4 -4 -4 -4 -3 --------- Run | Yrd Mat Mat Sto Mat Fac Fac Ext Cet Fac Upp War Pro Fac Upp Upp Res Machines Accessed 50 | . 7 9 12 7 5 2 3 1 1 . . . 2 1 . . Terminals 37 | . 6 6 8 5 5 1 3 1 . . . . 2 . . . Fabricators . | . . . . . . . . . . . . . . . . . Repair Stations 7 | . 1 2 1 2 . . . . 1 . . . . . . . Recycling Units 2 | . . . 2 . . . . . . . . . . . . . Scanalyzers 1 | . . 1 . . . . . . . . . . . . . . Garrison Access 2 | . . . 1 . . 1 . . . . . . . . . . Total Hacks 131 | . 18 29 34 20 10 4 9 1 2 . . . 3 1 . . Successful 68 | . 9 15 19 13 6 . 2 . 2 . . . 1 1 . . Failed 63 | . 9 14 15 7 4 4 7 1 . . . . 2 . . . Catastrophic 4 | . 1 . 1 1 . 1 . . . . . . . . . . Database Lockouts . | . . . . . . . . . . . . . . . . . Manual 78 | . 16 19 14 16 10 . . 1 . . . . 1 1 . . Terminals 104 | . 16 23 25 16 10 1 9 1 . . . . 3 . . . Fabricators . | . . . . . . . . . . . . . . . . . Repair Stations 16 | . 2 5 3 4 . . . . 2 . . . . . . . Recycling Units 4 | . . . 4 . . . . . . . . . . . . . Scanalyzers 1 | . . 1 . . . . . . . . . . . . . . Garrison Access 5 | . . . 2 . . 3 . . . . . . . . . . Terminal Hacks 14 | . . 3 5 2 . . 2 . . . . . 1 1 . . Prototype ID Bank 3 | . . 1 1 1 . . . . . . . . . . . . Open Door 5 | . . . 2 . . . 2 . . . . . . 1 . . Branch Access Points 1 | . . . . . . . . . . . . . 1 . . . Terminal Index 2 | . . 1 . 1 . . . . . . . . . . . . Locate Traps 1 | . . . 1 . . . . . . . . . . . . . Reprogram Traps 1 | . . . 1 . . . . . . . . . . . . . Zone Layout 1 | . . 1 . . . . . . . . . . . . . . Fabricator Hacks . | . . . . . . . . . . . . . . . . . Repair Station Hacks 14 | . 2 3 3 4 . . . . 2 . . . . . . . Scan Component 8 | . 1 2 2 2 . . . . 1 . . . . . . . Repair 6 | . 1 1 1 2 . . . . 1 . . . . . . . Recycling Unit Hacks 4 | . . . 4 . . . . . . . . . . . . . Retrieve Matter 1 | . . . 1 . . . . . . . . . . . . . Retrieve Components 3 | . . . 3 . . . . . . . . . . . . . Scanalyzer 1 | . . 1 . . . . . . . . . . . . . . Insert Component 1 | . . 1 . . . . . . . . . . . . . . Garrison Access Hacks . | . . . . . . . . . . . . . . . . . Unauthorized Hacks 34 | . 7 8 7 7 5 . . . . . . . . . . . Terminals 34 | . 7 8 7 7 5 . . . . . . . . . . . Botnet 6 | . 2 1 2 1 . . . . . . . . . . . . Operators 2 | . . 1 . 1 . . . . . . . . . . . . Skim 26 | . 5 6 5 5 5 . . . . . . . . . . . Fabricators . | . . . . . . . . . . . . . . . . . Repair Stations . | . . . . . . . . . . . . . . . . . Recycling Units . | . . . . . . . . . . . . . . . . . Scanalyzers . | . . . . . . . . . . . . . . . . . Garrison Access . | . . . . . . . . . . . . . . . . . Data Cores Recovered 2 | . . . 1 . . . . . . . . . 1 . . . Used . | . . . . . . . . . . . . . . . . . Hacking Detections 32 | . 6 6 7 4 2 2 3 1 . . . . 1 . . . Full Trace Events 3 | . . 1 1 . . . 1 . . . . . . . . . Feedback Events . | . . . . . . . . . . . . . . . . . Feedback Blocked . | . . . . . . . . . . . . . . . . . Robot Schematics Acquired . | . . . . . . . . . . . . . . . . . Robots Built . | . . . . . . . . . . . . . . . . . Authchips . | . . . . . . . . . . . . . . . . . Time . | . . . . . . . . . . . . . . . . . Total Robot Build Rating . | . . . . . . . . . . . . . . . . . Part Schematics Acquired . | . . . . . . . . . . . . . . . . . Parts Built . | . . . . . . . . . . . . . . . . . Authchips . | . . . . . . . . . . . . . . . . . Time . | . . . . . . . . . . . . . . . . . Total Part Build Rating . | . . . . . . . . . . . . . . . . . Parts Repaired 6 | . 1 1 1 2 . . . . 1 . . . . . . . Time 199 | . 26 26 26 77 . . . . 44 . . . . . . . Parts Recycled . | . . . . . . . . . . . . . . . . . Recycled Matter . | . . . . . . . . . . . . . . . . . Retrieved Matter . | . . . . . . . . . . . . . . . . . Retrieved Components 10 | . . . 10 . . . . . . . . . . . . . Parts Scanalyzed . | . . . . . . . . . . . . . . . . . Part Schematics Acquired . | . . . . . . . . . . . . . . . . . Parts Damaged . | . . . . . . . . . . . . . . . . . Bothacking | -11 -10 -9 -9 -8 -7 -6 -6 -6 -5 -5 -5 -4 -4 -4 -4 -3 ------------ Run | Yrd Mat Mat Sto Mat Fac Fac Ext Cet Fac Upp War Pro Fac Upp Upp Res Used RIF Installer . | . . . . . . . . . . . . . . . . . Robots Hacked . | . . . . . . . . . . . . . . . . . Non-combat . | . . . . . . . . . . . . . . . . . Combat . | . . . . . . . . . . . . . . . . . Robot Hacks Applied . | . . . . . . . . . . . . . . . . . Relay Couplers Released . | . . . . . . . . . . . . . . . . . Fabnet Peak Effective % . | . . . . . . . . . . . . . . . . . Robots Rewired 17 | . . . . . . . 16 . . . 1 . . . . . Allies Hacked . | . . . . . . . . . . . . . . . . . Hacks Repelled . | . . . . . . . . . . . . . . . . . Allies | -11 -10 -9 -9 -8 -7 -6 -6 -6 -5 -5 -5 -4 -4 -4 -4 -3 -------- Run | Yrd Mat Mat Sto Mat Fac Fac Ext Cet Fac Upp War Pro Fac Upp Upp Res Total Allies 25 | . . . . . . . 19 5 . . 1 . . . . . Largest Group 12 | . . . . . . . 10 12 11 4 4 . . . . . Highest-Rated Group 787 | . . . . . . . 410 787 698 308 308 . . . . . Highest-Rated Ally 159 | . . . . . . . 159 159 159 96 96 . . . . . Total Orders 4 | . . . . 2 . . . . . . 1 . . 1 . . STAY 1 | . . . . . . . . . . . 1 . . . . . EXPLORE 3 | . . . . 2 . . . . . . . . . 1 . . Ally Attacks 229 | . . . . . . . 57 47 114 7 4 . . . . . Total Damage 6942 | . . . . . . . 1161 1559 3787 340 95 . . . . . Kills 39 | . . . . . . . 2 8 25 2 2 . . . . . Allies Corrupted 2 | . . . . . . . . . . . 2 . . . . . Allies Melted . | . . . . . . . . . . . . . . . . . Intel | -11 -10 -9 -9 -8 -7 -6 -6 -6 -5 -5 -5 -4 -4 -4 -4 -3 ------- Run | Yrd Mat Mat Sto Mat Fac Fac Ext Cet Fac Upp War Pro Fac Upp Upp Res Active Infowar (turns) 10451 | 12 1113 654 . 55 2611 1021 . . 1718 208 769 603 956 722 9 . Sensors 8439 | . . . . . 2524 930 . . 1718 208 769 603 956 722 9 . Structural 1330 | . 18 243 . . 1069 . . . . . . . . . . . Traps 259 | . . . . . . 259 . . . . . . . . . . Seismic 1573 | 12 1095 411 . 55 . . . . . . . . . . . . Robot Analysis Total . | . . . . . . . . . . . . . . . . . Derelict Logs Recovered 3 | . . . . . . . . . . . . 1 . 1 1 . Drone Launches 6 | . . . . 3 . . . . . . . . . 3 . . Drone Recoveries 3 | . . . . 1 . . . . . . . . . 2 . . Exploration | -11 -10 -9 -9 -8 -7 -6 -6 -6 -5 -5 -5 -4 -4 -4 -4 -3 ------------- Run | Yrd Mat Mat Sto Mat Fac Fac Ext Cet Fac Upp War Pro Fac Upp Upp Res Turns Passed 20931 | 139 1875 2373 1470 1804 2700 1485 1861 653 1740 208 1243 622 1137 1326 124 171 Spaces Moved 11116 | 65 758 1407 750 711 1495 900 945 295 693 81 728 420 614 834 182 238 Core 376 | 2 . . . . . . . . . . . . . 158 105 111 Treads 425 | . . 327 . 98 . . . . . . . . . . . . Legs 9948 | 63 758 1080 750 613 1495 900 945 295 693 81 728 420 614 513 . . Wheels 55 | . . . . . . . . . . . . . . . . 55 Hover . | . . . . . . . . . . . . . . . . . Flight 312 | . . . . . . . . . . . . . . 163 77 72 Fastest Speed 40 | 50 120 120 120 120 120 133 133 133 133 122 114 114 120 40 40 42 Average Speed 142 | 117 176 131 142 143 142 134 134 133 227 227 140 127 125 139 47 57 Slowest Speed 360 | 120 190 240 190 330 250 220 250 133 229 229 193 209 220 360 150 90 Overloaded Moves . | . . . . . . . . . . . . . . . . . Propulsion Burnouts . | . . . . . . . . . . . . . . . . . Robots Hopped . | . . . . . . . . . . . . . . . . . Potential Cave-ins . | . . . . . . . . . . . . . . . . . Cave-ins Triggered 2 | . . . . 1 . . . . . . . . . 1 . . Exploration Rate (%) 53 | 6 96 94 97 78 34 17 88 76 15 15 72 70 17 96 26 8 Regions Visited 16 Branch Regions 8 Pre-discovered Areas 6 | . . . 2 1 3 . . . . . . . . . . . Known Exits Taken 12 | . . 1 1 1 1 1 1 1 1 1 1 1 1 . . . Unknown Exits Taken 4 | 1 1 . . . . . . . . . . . . 1 1 . Scrap Searched 4 | . . . . . . . . . . . . 1 . 3 . . Spaces Dug 17 | . . 3 . 3 3 . . . 6 . . . . 2 . . Terrain Destroyed 105 | . 3 3 . 15 31 . . . 9 . 30 3 5 2 . 4 Melee 17 | . . 3 . 3 3 . . . 6 . . . . 2 . . Projectile 19 | . . . . . . . . . 3 . 4 3 5 . . 4 AOE 69 | . 3 . . 12 28 . . . . . 26 . . . . . Terrain Rammed . | . . . . . . . . . . . . . . . . . Walls Destroyed . | . . . . . . . . . . . . . . . . . Machines Disabled . | . . . . . . . . . . . . . . . . . Actions | -11 -10 -9 -9 -8 -7 -6 -6 -6 -5 -5 -5 -4 -4 -4 -4 -3 --------- Run | Yrd Mat Mat Sto Mat Fac Fac Ext Cet Fac Upp War Pro Fac Upp Upp Res Total 14780 | 94 1201 1741 983 1284 1915 1071 1409 530 819 104 900 481 818 961 207 262 Wait 2100 | 1 336 133 108 392 278 71 200 204 85 16 104 28 78 53 11 2 Move 11100 | 64 757 1406 749 710 1494 899 944 294 692 80 727 419 613 833 181 238 Hop . | . . . . . . . . . . . . . . . . . Pick Up 112 | 2 13 19 4 8 22 8 8 4 2 . 3 5 5 9 . . Fast Attach 64 | 7 5 5 2 7 4 3 1 . 2 . 2 1 7 11 . 7 Attach 67 | . . 5 . 4 8 3 5 . 1 4 7 2 16 7 5 . Detach 17 | . . . . . . . . . . 1 . 1 . 10 1 4 Swap 248 | 2 18 49 20 36 16 20 18 5 13 1 17 7 25 1 . . Drop 167 | . 14 20 11 24 19 14 15 8 6 1 5 6 6 17 . 1 Fire 681 | 18 56 97 75 90 68 49 61 15 12 1 26 12 65 18 9 9 Melee 29 | . . 4 10 3 4 . . . 6 . . . . 2 . . Ram 1 | . . . . . . . . . . . . . . . . 1 Kick 30 | . 2 3 4 10 2 4 2 . . . . . 3 . . . Crush . | . . . . . . . . . . . . . . . . . Escape Stasis . | . . . . . . . . . . . . . . . . . Rewire 164 | . . . . . . . 155 . . . 9 . . . . . Trap . | . . . . . . . . . . . . . . . . . Miscellaneous . | . . . . . . . . . . . . . . . . . Route ------- -11/Scrapyard -10/Materials (discovered 5 exits: *Mat x3 / [*Min] / [*Sub]) -9/Materials (discovered 6 exits: *Mat x3 / [*Min x2] / *Sto) -9/Storage (discovered 2 exits: *Mat / Rec) -8/Materials (discovered 3 exits: *Fac x3) -7/Factory (discovered 4 exits: *Fac x2 / *Low x2) -6/Factory (discovered 2 exits: *Ext x2) -6/Extension (discovered 2 exits: *Fac / *Cet) -6/Cetus (discovered 2 exits: *Fac / *Arc) -5/Factory -5/Upper Caves -5/Warlord -4/Proximity Caves -4/Factory (discovered 3 exits: *Upp x2 / Arm) -4/Upper Caves -4/Upper Caves -3/Research History --------- Turn | Location | Event 10 | -11/Scrapyard | Discovered new exit (range 14) 140 | -11/Scrapyard | Entered Materials 198 | -10/Materials | Discovered new exit (range 8) 232 | -10/Materials | Discovered new exit (range 16) 304 | -10/Materials | Build established: Mutant 512 | -10/Materials | Repaired EM Pulse Gun 992 | -10/Materials | Discovered new exit (range 7) 1059 | -10/Materials | Discovered new exit (range 8) 1486 | -10/Materials | Learned 4 Recycling zone layouts 1562 | -10/Materials | Learned 4 Subcaves zone layouts 1578 | -10/Materials | Build established: Scavenger-Mutant 1626 | -10/Materials | Learned location of 1 exit from Storage 1679 | -10/Materials | Learned Storage security intel 1743 | -10/Materials | Discovered new exit (range 6) 1752 | -10/Materials | Learned 4 Recycling zone layouts 1771 | -10/Materials | Learned Storage emergency access door positions 2015 | -10/Materials | Entered another Materials area 2015 | -9/Materials | Evolved 2 slots: Propulsion x2 2016 | -9/Materials | Identified exit to Storage 2683 | -9/Materials | Discovered new exit (range 13) 3164 | -9/Materials | Discovered new exit (range 13) 3311 | -9/Materials | Discovered new exit (range 16) 3442 | -9/Materials | Discovered new exit (range 15) 3456 | -9/Materials | Build established: Mutant 3968 | -9/Materials | Discovered new exit (range 16) 4068 | -9/Materials | Build established: Scavenger-Mutant 4345 | -9/Materials | Repaired Aluminum Leg 4369 | -9/Materials | Learned location of 1 exit from Storage 4388 | -9/Materials | Entered Storage 4389 | -9/Storage | Identified exit to Recycling 4389 | -9/Storage | Identified exit to Materials 4696 | -9/Storage | Repaired Aluminum Leg 4861 | -9/Storage | Core integrity fell below 50% 5550 | -9/Storage | Learned location of Mines (-8) 5610 | -9/Storage | Learned 4 Materials zone layouts 5638 | -9/Storage | Learned Storage emergency access door positions 5662 | -9/Storage | Learned 4 Materials zone layouts 5858 | -9/Storage | Entered Materials 5858 | -8/Materials | Evolved 2 slots: Utility x1, Weapon x1 5859 | -8/Materials | Identified exit to Factory 6255 | -8/Materials | Repaired Imp. Assault Rifle 6578 | -8/Materials | Build established: Scavenger-Gunner 6944 | -8/Materials | Crushed by falling debris 7251 | -8/Materials | Learned location of 1 exit from Lower Caves 7264 | -8/Materials | Repaired Aluminum Leg 7326 | -8/Materials | Learned Factory trap positions 7356 | -8/Materials | Discovered exit to Factory (range 10) 7392 | -8/Materials | Learned location of 1 exit from Storage 7440 | -8/Materials | Garrison activated, responded to threat 7446 | -8/Materials | Learned 2 Lower Caves zone layouts 7490 | -8/Materials | Learned 2 Lower Caves zone layouts 7632 | -8/Materials | Learned location of Extension (-6) 7662 | -8/Materials | Entered Factory 7662 | -7/Factory | Evolved 2 slots: Utility x2 7663 | -7/Factory | Loaded intel: 79 trap records 8253 | -7/Factory | Build established: Skirmisher 8480 | -7/Factory | Lost 3 parts (1p2u) 8544 | -7/Factory | Discovered new exit (range 8) 8739 | -7/Factory | Discovered new exit (range 12) 9142 | -7/Factory | Learned 4 Lower Caves zone layouts 9142 | -7/Factory | Identified exit to Lower Caves 9220 | -7/Factory | Learned Extension stockpile data 9286 | -7/Factory | Learned Extension trap positions 9340 | -7/Factory | Learned location of Zion (-7) 9382 | -7/Factory | Learned location of Warlord (-5) 9415 | -7/Factory | Learned location of 2 exits from Archives 9440 | -7/Factory | Identified exit to Factory 9476 | -7/Factory | Learned location of 1 exit from Cetus 9945 | -7/Factory | Garrison activated, responded to threat 10362 | -7/Factory | Entered another Factory area 10362 | -6/Factory | Evolved 2 slots: Propulsion x1, Utility x1 10363 | -6/Factory | Identified exit to Extension 11335 | -6/Factory | Build established: Scavenger-Skirmisher 11435 | -6/Factory | Discovered exit to Extension (range 12) 11754 | -6/Factory | Lost 3 parts (1n1u1w) 11847 | -6/Factory | Entered Extension 11848 | -6/Extension | Loaded intel: 25 trap records 11904 | -6/Extension | Build established: Scavenger-Gunner 12753 | -6/Extension | Build established: Commander-Gunner 12925 | -6/Extension | Spotted B-75 Beast 12939 | -6/Extension | Destroyed B-75 Beast 12978 | -6/Extension | Spotted B-75 Beast 12989 | -6/Extension | Destroyed B-75 Beast 13058 | -6/Extension | Lost 4 allies 13150 | -6/Extension | Rescued a captive Derelict 13151 | -6/Extension | Rescued a captive Derelict 13288 | -6/Extension | Build established: Scavenger-Gunner 13376 | -6/Extension | Rescued A7 13597 | -6/Extension | Disrupted transfer network 13663 | -6/Extension | Discovered new exit (range 10) 13664 | -6/Extension | Discovered new exit (range 6) 13671 | -6/Extension | Identified exit to Cetus 13708 | -6/Extension | Entered Cetus 13708 | -6/Cetus | Accompanied by 10 allies (A7) 13709 | -6/Cetus | Identified exit to Factory 13713 | -6/Cetus | Acquired a Cetus Manufacturing Module code from A7 13725 | -6/Cetus | Spotted Cetus Guard 13725 | -6/Cetus | Spotted Cetus Guard 13728 | -6/Cetus | Spotted Cetus Guard 13728 | -6/Cetus | Spotted Cetus Guard 13730 | -6/Cetus | Allies destroyed Cetus Guard 13734 | -6/Cetus | Allies destroyed Cetus Guard 13735 | -6/Cetus | Destroyed Cetus Guard 13743 | -6/Cetus | Allies destroyed Cetus Guard 13847 | -6/Cetus | Started Cetus Manufacturing Module 13863 | -6/Cetus | Discovered new exit (range 15) 13872 | -6/Cetus | Manufactured an Enhanced Grunt 13882 | -6/Cetus | Identified exit to Archives 13897 | -6/Cetus | Manufactured an Enhanced Grunt 13916 | -6/Cetus | Spotted Cetus Guard 13916 | -6/Cetus | Spotted Cetus Guard 13918 | -6/Cetus | Spotted Cetus Guard 13919 | -6/Cetus | Spotted Cetus Guard 13922 | -6/Cetus | Manufactured an Enhanced Grunt 13925 | -6/Cetus | Allies destroyed Cetus Guard 13927 | -6/Cetus | Allies destroyed Cetus Guard 13937 | -6/Cetus | Allies destroyed Cetus Guard 13944 | -6/Cetus | Destroyed Cetus Guard 13947 | -6/Cetus | Manufactured an Enhanced Grunt 13957 | -6/Cetus | Met Revision 17 13972 | -6/Cetus | Manufactured an Enhanced Grunt 14175 | -6/Cetus | Escorted A7 to Cetus Mainframe 14246 | -6/Cetus | Build established: Commander-Gunner 14361 | -6/Cetus | Entered Factory 14361 | -5/Factory | Accompanied by 11 allies (A7) 14361 | -5/Factory | Evolved 2 slots: Power x1, Utility x1 14362 | -5/Factory | Identified exit to Upper Caves 14366 | -5/Factory | Received a hacking code to weaken MAIN.C 14737 | -5/Factory | Build established: Scavenger-Skirmisher 14869 | -5/Factory | Repaired Lgt. Armored Exoskeleton 16101 | -5/Factory | Entered Upper Caves 16101 | -5/Upper Caves | Accompanied by 4 allies 16283 | -5/Upper Caves | A Derelict revealed a hidden shortcut to "reach the base" 16283 | -5/Upper Caves | Identified exit to Warlord 16309 | -5/Upper Caves | Entered Warlord 16309 | -5/Warlord | Accompanied by 4 allies 16360 | -5/Warlord | Discovered new exit (range 9) 16368 | -5/Warlord | Identified exit to Proximity Caves 16553 | -5/Warlord | System corruption cleaned by Quarantine Array 17005 | -5/Warlord | Met Warlord 17006 | -5/Warlord | Warlord's base attacked by MAIN.C 17163 | -5/Warlord | Spotted B-86 Titan 17177 | -5/Warlord | Spotted B-75 Beast 17356 | -5/Warlord | Warlord forces counterattacked 17382 | -5/Warlord | Spotted Executioner 17383 | -5/Warlord | Build established: Scavenger-Gunner 17398 | -5/Warlord | Spotted Executioner 17426 | -5/Warlord | Spotted Striker 17459 | -5/Warlord | Spotted Executioner 17461 | -5/Warlord | Spotted Striker 17473 | -5/Warlord | Lost 7 parts (2p4n1w) 17488 | -5/Warlord | Spotted Executioner 17508 | -5/Warlord | Lost 15 allies 17534 | -5/Warlord | Spotted Executioner 17552 | -5/Warlord | Entered Proximity Caves 17580 | -4/Proximity Caves | Lost 9 allies 17855 | -4/Proximity Caves | Build established: Scavenger-Skirmisher 18123 | -4/Proximity Caves | Identified exit to Factory 18174 | -4/Proximity Caves | Entered Factory 18174 | -4/Factory | Evolved 2 slots: Utility x1, Weapon x1 18627 | -4/Factory | Lost 5 parts (1p1n1u2w) 18921 | -4/Factory | Build established: Scavenger-Gunner 19032 | -4/Factory | Lost 13 parts (2p6n2u3w) 19272 | -4/Factory | Identified exit to Upper Caves 19272 | -4/Factory | Identified exit to Armory 19311 | -4/Factory | Entered Upper Caves 19636 | -4/Upper Caves | Spotted B-86 Titan 19678 | -4/Upper Caves | Crushed by falling debris 19678 | -4/Upper Caves | System corruption reached 10% 19682 | -4/Upper Caves | Core integrity fell below 50% 19684 | -4/Upper Caves | Destroyed B-86 Titan 19709 | -4/Upper Caves | Lost 9 parts (1p3n3u2w) 19963 | -4/Upper Caves | Build established: Mutant 20219 | -4/Upper Caves | Acquired the password to a Derelict Tinkerer's latest research 20260 | -4/Upper Caves | Found Prototype Special Weapon 20260 | -4/Upper Caves | Identified Molecular Deconstructor 20435 | -4/Upper Caves | Released all parts (8) 20475 | -4/Upper Caves | Attracted the attention of an 0b10 outpost 20517 | -4/Upper Caves | Learned Research trap positions 20633 | -4/Upper Caves | Discovered new exit (range 9) 20637 | -4/Upper Caves | Entered another Upper Caves area 20712 | -4/Upper Caves | Lost 4 parts (1p1n1u1w) 20722 | -4/Upper Caves | Spotted B-86 Titan 20757 | -4/Upper Caves | Discovered new exit (range 8) 20761 | -4/Upper Caves | Entered Research 20761 | -3/Research | Evolved 2 slots: Propulsion x1, Utility x1 20762 | -3/Research | Loaded intel: 104 trap records 20810 | -3/Research | Found Unknown Device 20810 | -3/Research | Identified Quantum Capacitor 20914 | -3/Research | Core integrity fell below 50% 20929 | -3/Research | Core integrity fell below 20% 20932 | -3/Research | Destroyed by S-43 Plague with Heavy Machine Gun Last Messages --------------- 20826_ S-43 Plague knocked back. 20829_ U-05 Engineer builds a Wall. 20832_ S-43 Plague destroyed. 20836_ U-05 Engineer builds a Wall. 20836_ U-05 Engineer destroyed. 20836_ Penetrated by Slug. 20836_ Slug penetrates Wall. 20841_ Acquired Xenon Bombardment Thruster. 20842_ Discarded Adv. Targeting Computer. 20844_ Slammed into S-43 Plague. 20845_ Acquired Xenon Bombardment Thruster. 20855_ K-01 Serf destroyed. 20856_ Xenon Bombardment Thruster destroyed. 20856_ Dropped Linear Accelerator. 20878_ S-43 Plague destroyed. 20879_ Xenon Bombardment Thruster destroyed. 20881_ K-01 Serf collects debris. 20909_ S-43 Plague destroyed. 20910_ Centrium Wheel destroyed. [Achievement: Overachiever] Map ----- +----------------------------------------------------+ | | | | | | | | | | | | | | | | | | | | | | | | | ?????????????????????????????????????????????????? | | ?????????????????????????????????????????????????? | | ?????????????????????????????????????????????????? | | ??????#################################??????????? | | ??????+ s s ???????????? | | ??????# ^ s #?????????????? | | ??????# s #?????????????? | | ??????# ^ s #?????????????? | | ??????# ##############s ^ #?????????????? | | ??????# #?????# # ##+#?????????????? | | ??????# #?????# ; ^ #????????????????? | | ??????# ##+#?????# # #????????????????? | | ??????# #????????# # ^ #????????????????? | | ??????# #????????# ?#@! #????????????????? | | ??????# #????????# ?# !^! #????????????????? | | ####### #????????#####??# !!! #????????????????? | | # #???????????????# !!! g #?###+###????????? | | #???????????????# g #?# #????????? | | ##+##???????????# #?# #????????? | | # ???? A? ?????????? | | # #####+####?????????########### ?????????? | | # #???????????????????# #?? ?????????? | | # #???????????????????# #??# #?????????? | | #???????????????????# #??# #?????????? | | #???????????????????# #??# +?????????? | | #???????????????????# #??# #?????????? | | #???????????????????# #??# #?????????? | | ######??????????????#########+#######+######?????? | | ????????????????????# +%!*%+ #?????? | | ????????????????????# # % %# #?????? | | ????????????????????# # != # #?????? | | ????????????????????# # # """"" #?????? | | ????????????????????# # # """"" #?????? | | ????????????????????######### # """"" #?????? | | ??????????????????########### # #?????? | | ??????????????????# # # #?????? | | ??????????????????# # ###########?????? | | ??????????????????# # #????????????? | +----------------------------------------------------+ Best States ------------- Heat Dissipation 121 Coolant Potential 80 Energy Generation 37 Energy Capacity 550 Matter Stores 300 Matter Capacity 300 Sight Range 16 Robot Scan Range 18 Terrain Scan Density 10 Base Temperature (-) 200 Armor Coverage 225 Evasion (%) 65 Targeting Accuracy 8 Core Analysis 6 Armor Integrity Analysis 40 Recoil Reduction 2 Defensive Hacking 10 Item Schematics ----------------- None Robot Schematics ------------------ None Fabricated ------------ Nothing Repaired ---------- EM Pulse Gun | 51% | -10/Materials Aluminum Leg | 13% | -9/Materials Aluminum Leg | 12% | -9/Storage Imp. Assault Rifle | 26% | -8/Materials Aluminum Leg | 10% | -8/Materials Lgt. Armored Exoskeleton | 39% | -5/Factory Alien Tech Used ----------------- None Achievements -------------- Charge!!! Main Advantage Overachiever Project G-00 Challenges ------------ None Game ------ Seed NeutrinoFissionRigger Manual? 0 Play Time 02:13:41 Cumulative 181.8 hours Start 2025.10.16 @ 15:37:28 End 2025.10.16 @ 23:20:51 Sessions 3 Manual Loads 0 Difficulty Rogue Special Mode None Game No. 312 Rogue 310 Adventurer 0 Explorer 2 Win Type - Total 2 Types 1/0/0/1/0/0/0/0/0/0 Lore% 48 Gallery% 57 Achievement% 50 Wizard Run 0 Options --------- Layout 2 ASCII 0 Keyboard 1 Movement Arrows Keybinds 0 Fullscreen 1 Font 28/SmallcapsGlow Map View 50x49 Zoom Use 0% Tactical HUD 1 Map Filters NONE Filters NONE Steam 1 RUN: 2dc7dc6c-bb0d-440b-b0ea-07a37e7e9ff6